bitfinex/quotes_SOLUSD_20220119
["timestamp","ask_amount","ask_price","bid_price","bid_amount"]
[1642585079198,0.25,134.11,134.04,11.1897]
[1642585079397,3.233,134.11,134.04,11.1897]
[1642585079698,2.983,134.11,134.04,11.1897]
[1642585080098,2.983,134.11,134.03,10.76]
[1642585080299,0.25,134.1,134.03,10.76]
[1642585080600,6.25,134.1,134.03,10.76]
[1642585080898,0.25,134.1,134.03,10.76]
[1642585081098,17.4415,134.1,134.02,2.983]
[1642585081299,2.983,134.09,134.01,35.465]
[1642585081699,6.25,134.08,134.01,35.465]
[1642585082300,0.25,134.08,134.01,35.465]
[1642585082503,6.0,134.07,134.01,35.465]
[1642585082701,2.984,134.09,134.01,35.465]
[1642585082702,28.94786263,134.06,134.01,35.465]
[1642585085004,11.1944,134.07,134.01,35.465]
[1642585087106,11.1944,134.07,134.02,0.25]
[1642585087808,11.1944,134.07,134.01,35.465]
[1642585088808,11.1944,134.07,134.02,0.25]
[1642585089413,0.25,134.06,134.01,35.465]
[1642585090609,6.25,134.06,134.01,35.465]
[1642585091409,17.4445,134.06,134.01,24.705]
[1642585094411,17.1945,134.06,134.01,24.705]
[1642585094616,6.0,134.06,134.02,0.25]
[1642585095613,48.58180262,134.08,134.02,0.25]
[1642585096816,6.0,134.07,134.02,0.25]
[1642585097015,17.1945,134.07,134.02,0.25]
[1642585097717,17.1945,134.07,134.01,24.705]
[1642585098424,17.1945,134.07,134.02,0.25]
[1642585100017,17.1945,134.07,134.01,24.705]
[1642585100219,17.1945,134.07,134.02,0.25]
[1642585101021,14.1768,134.09,134.02,74.87]
[1642585101223,3.49450621,134.1,134.04,36.88523203]
[1642585101427,1.38823665,134.1,134.04,36.88523203]
[1642585101621,1.38823665,134.1,134.05,0.25]
[1642585102425,1.38823665,134.1,134.05,74.87]
[1642585102649,2.983,134.12,134.05,76.189776]
[1642585102850,2.983,134.12,134.06,2.983]
[1642585103050,2.983,134.12,134.06,13.743]
[1642585103650,2.983,134.12,134.07,0.25]
[1642585103850,37.42399865,134.14,134.07,0.25]
[1642585104451,48.61199865,134.14,134.07,11.4373]
[1642585105059,48.61199865,134.14,134.07,0.25]
[1642585105253,0.25,134.13,134.07,0.25]
[1642585107755,0.25,134.13,134.06,21.9485]
[1642585107955,3.232,134.13,134.06,21.9485]
[1642585108157,2.982,134.13,134.06,21.9485]
[1642585108357,2.10626956,134.15,134.07,3.232]
[1642585108557,6.78835826,134.16,134.08,10.76]
[1642585108759,6.78835826,134.16,134.09,0.25]
[1642585109058,4.6820887,134.16,134.09,0.25]
[1642585109260,4.6820887,134.16,134.09,40.71618667]
[1642585109459,4.6820887,134.16,134.09,40.46618667]
[1642585110068,1.7000887,134.16,134.09,40.46618667]
[1642585110464,12.8863887,134.16,134.09,51.65208667]
[1642585110663,12.8863887,134.16,134.1,0.25]
[1642585111664,12.8863887,134.16,134.08,37.4841]
[1642585111870,14.4194,134.15,134.08,45.6889]
[1642585112670,14.4194,134.15,134.09,0.25]
[1642585112867,11.4374,134.15,134.09,0.25]
[1642585114367,11.4374,134.15,134.06,2.982]
[1642585114568,11.1916,134.12,134.05,23.4456]
[1642585114768,3.233,134.11,134.03,24.9682]
[1642585115171,0.25,134.11,134.03,24.9682]
[1642585115370,2.983,134.1,134.04,42.85984718]
[1642585115768,11.4421,134.09,134.04,42.85984718]
[1642585116168,11.4421,134.09,134.02,11.1918]
[1642585116569,11.4421,134.09,134.01,10.76]
[1642585116768,2.983,134.08,134.01,10.76]
[1642585116970,27.6237,134.11,134.01,10.76]
[1642585117169,11.1921,134.09,134.02,48.56224684]
[1642585117773,11.1921,134.09,134.03,0.25]
[1642585118170,11.1921,134.09,134.03,0.68707028]
[1642585122605,11.1921,134.09,134.03,0.43707028]
[1642585122806,0.25,134.08,134.03,0.43707028]
[1642585123108,0.25,134.08,134.02,48.56224684]
[1642585124307,3.233,134.08,134.02,45.57924684]
[1642585125407,0.25,134.08,134.02,45.57924684]
[1642585129813,11.4432,134.08,134.02,45.57924684]
[1642585130014,11.1932,134.08,134.02,45.57924684]
[1642585130417,6.0,134.09,134.02,45.57924684]
[1642585130615,2.983,134.08,134.02,45.57924684]
[1642585131219,2.983,134.08,134.0,72.3247]
[1642585131420,11.1938,134.07,134.01,0.25]
[1642585132217,11.1938,134.07,134.01,44.50576746]
[1642585133117,0.25,134.06,134.01,44.25576746]
[1642585133719,36.09786613,134.06,134.0,58.1482]
[1642585133918,47.29266613,134.06,133.98,13.744]
[1642585134116,2.984,134.05,133.98,10.76]
[1642585134317,36.09786613,134.06,133.97,25.7326]
[1642585134516,0.25,134.04,133.97,25.7326]
[1642585134918,11.1972,134.03,133.98,38.50901409]
[1642585135322,0.25,134.02,133.96,10.76]
[1642585135522,6.25,134.02,133.96,10.76]
[1642585136119,11.1988,134.01,133.96,10.76]
[1642585136325,0.25,134.0,133.96,10.76]
[1642585136720,54.79796665,134.01,133.96,10.76]
[1642585136922,40.61416665,134.01,133.96,10.76]
[1642585137121,40.61416665,134.01,133.93,48.4176]
[1642585137122,0.25,134.0,133.93,48.4176]
[1642585137323,0.25,134.0,133.94,35.19973111]
[1642585137923,14.1839,134.01,133.94,46.39843111]
[1642585138123,6.0,134.02,133.94,46.39843111]
[1642585138323,2.985,134.04,133.95,1.32735859]
[1642585138622,37.3248,134.06,133.95,25.18255859]
[1642585138825,64.2109703,134.05,133.96,0.25]
[1642585139522,6.0,134.04,133.96,0.25]
[1642585139725,6.0,134.04,133.97,2.985]
[1642585140627,11.1977,134.03,133.97,2.985]
[1642585141029,6.0,134.02,133.97,2.985]
[1642585141328,6.0,134.02,133.96,14.432]
[1642585141924,6.0,134.04,133.96,14.432]
[1642585142124,0.25,134.03,133.96,14.432]
[1642585142526,0.25,134.03,133.96,3.235]
[1642585143626,11.4471,134.03,133.96,3.235]
[1642585143828,6.0,134.02,133.96,2.985]
[1642585144525,6.0,134.02,133.97,0.25]
[1642585144927,17.1962,134.04,133.97,0.25]
[1642585146431,17.1962,134.04,133.97,11.4462]
[1642585146632,0.25,134.03,133.97,11.4462]
[1642585147733,11.4473,134.03,133.97,0.25]
[1642585148134,6.0,134.02,133.97,0.25]
[1642585148334,6.0,134.02,133.96,2.985]
[1642585148534,0.25,134.01,133.96,2.985]
[1642585149836,8.985,134.02,133.95,23.8552]
[1642585150035,6.0,134.02,133.95,26.8402]
[1642585150235,6.0,134.02,133.96,0.25]
[1642585150436,6.0,134.03,133.96,0.25]
[1642585151235,6.0,134.03,133.96,11.4468]
[1642585151439,2.985,134.04,133.97,77.605]
[1642585151639,2.985,134.04,133.98,10.76]
[1642585151836,2.985,134.04,133.99,2.984]
[1642585152035,2.985,134.04,133.99,13.744]
[1642585152237,2.985,134.04,134.0,38.90113272]
[1642585152438,11.1936,134.08,134.0,50.09453272]
[1642585152637,2.984,134.07,134.0,50.09453272]
[1642585153440,2.984,134.08,134.0,50.09453272]
[1642585153738,0.25,134.07,134.0,50.09453272]
[1642585153946,2.984,134.06,134.0,38.90113272]
[1642585155238,2.984,134.06,134.01,0.25]
[1642585155438,2.984,134.09,134.01,3.234]
[1642585155740,0.25,134.08,134.01,25.797]
[1642585156140,0.25,134.09,134.01,25.797]
[1642585156338,3.233,134.09,134.01,22.813]
[1642585156541,3.233,134.09,134.01,33.7558]
[1642585156542,53.74650561,134.09,134.01,33.7558]
[1642585158539,55.85277517,134.09,134.01,22.563]
[1642585158740,11.1943,134.07,134.01,22.563]
[1642585158940,14.1783,134.07,134.0,38.90113272]
[1642585159147,0.25,134.06,134.0,38.90113272]
[1642585160541,0.25,134.06,134.0,50.09483272]
[1642585162144,11.1943,134.07,134.01,77.854]
[1642585162346,52.62037517,134.09,134.02,11.1921]
[1642585162676,50.51410561,134.09,134.02,11.1921]
[1642585162842,50.51410561,134.09,134.03,0.25]
[1642585163243,11.1928,134.09,134.03,0.25]
[1642585163444,12.64076602,134.1,134.03,11.4413]
[1642585163644,1.44946602,134.1,134.03,11.4413]
[1642585164044,1.44946602,134.1,134.04,2.983]
[1642585164246,1.44946602,134.1,134.03,26.4889]
[1642585164844,1.44946602,134.1,134.04,11.1904]
[1642585165044,1.44946602,134.1,134.05,43.59377758]
[1642585166447,1.44946602,134.1,134.05,54.78337758]
[1642585167549,1.44946602,134.1,134.05,43.59377758]
[1642585168849,2.983,134.12,134.05,54.78337758]
[1642585169050,27.88956956,134.15,134.06,0.25]
[1642585169353,24.90656956,134.15,134.06,25.2481]
[1642585169552,22.8003,134.15,134.06,25.2481]
[1642585169950,15.80006971,134.16,134.06,36.4361]
[1642585170178,2.982,134.16,134.07,77.602]
[1642585170352,2.10626956,134.18,134.07,94.362]
[1642585170551,2.10626956,134.19,134.08,25.66060028]
[1642585170754,2.10626956,134.19,134.09,13.742]
[1642585170951,2.10626956,134.19,134.09,21.06630028]
[1642585171154,11.1838,134.19,134.12,11.1832]
[1642585171552,0.25,134.18,134.12,11.1832]
[1642585171751,2.10626956,134.21,134.12,11.1832]
[1642585171953,2.981,134.2,134.13,0.25]
[1642585172151,2.981,134.2,134.11,27.1036]
[1642585172353,2.981,134.2,134.12,0.25]
[1642585173555,14.164,134.2,134.13,11.1829]
[1642585173755,11.183,134.2,134.14,0.25]
[1642585174054,11.183,134.2,134.14,6.25]
[1642585174254,2.981,134.21,134.14,6.25]
[1642585174458,2.10626956,134.23,134.15,74.62]
[1642585174654,11.1802,134.24,134.17,11.1793]
[1642585175656,11.1802,134.24,134.18,0.25]
[1642585175855,31.31974063,134.25,134.18,0.25]
[1642585175856,28.33974063,134.25,134.18,0.25]
[1642585176057,28.33974063,134.25,134.18,11.4287]
[1642585176456,44.50778218,134.26,134.18,11.4287]
[1642585176658,6.0,134.25,134.18,11.4287]
[1642585176960,6.25,134.25,134.18,11.4287]
[1642585177357,6.0,134.25,134.18,11.1787]
[1642585177560,17.1787,134.25,134.18,11.1787]
[1642585177785,17.1787,134.25,134.19,0.25]
[1642585177986,6.0,134.25,134.19,14.4079]
[1642585178188,6.0,134.25,134.19,14.1579]
[1642585178488,6.0,134.27,134.19,14.1579]
[1642585178687,6.0,134.27,134.2,0.25]
[1642585179188,40.21000955,134.26,134.2,0.25]
[1642585179386,6.0,134.27,134.2,0.25]
[1642585179591,6.0,134.27,134.2,11.4273]
[1642585179990,6.0,134.28,134.2,11.4273]
[1642585180187,8.979,134.28,134.2,11.4273]
[1642585180388,46.02453809,134.27,134.21,46.43625554]
[1642585180589,57.20163809,134.27,134.21,46.43625554]
[1642585181293,2.979,134.28,134.21,46.43625554]
[1642585181491,2.979,134.3,134.22,4.55330028]
[1642585181692,13.27996956,134.32,134.23,10.76]
[1642585181890,11.1737,134.32,134.24,2.978]
[1642585182093,11.1737,134.32,134.24,15.31230028]
[1642585182291,11.1737,134.32,134.25,0.25]
[1642585182491,7.498,134.33,134.25,11.4226]
[1642585182694,6.0,134.31,134.26,36.03608272]
[1642585182891,6.0,134.32,134.26,36.03608272]
[1642585183092,6.0,134.32,134.27,0.25]
[1642585184091,6.0,134.32,134.26,36.03608272]
[1642585184391,20.1511,134.32,134.26,36.03608272]
[1642585184792,20.1511,134.32,134.27,0.25]
[1642585184993,17.1731,134.32,134.27,0.25]
[1642585185199,7.498,134.33,134.27,0.25]
[1642585185392,7.498,134.33,134.28,2.978]
[1642585185994,7.498,134.33,134.26,36.03608272]
[1642585186195,47.9652194,134.33,134.26,36.03608272]
[1642585186394,7.498,134.33,134.26,36.03608272]
[1642585186795,18.6702,134.33,134.27,11.4215]
[1642585186997,18.6702,134.33,134.27,14.3995]
[1642585187197,18.6702,134.33,134.27,11.1715]
[1642585190299,18.6702,134.33,134.28,0.25]
[1642585190500,18.6702,134.33,134.27,14.1495]
[1642585190501,7.498,134.33,134.27,14.1495]
[1642585191100,7.498,134.33,134.28,0.25]
[1642585192398,7.498,134.33,134.28,11.4207]
[1642585192599,7.498,134.33,134.29,2.978]
[1642585192802,7.498,134.33,134.3,0.25]
[1642585192998,7.498,134.33,134.31,2.978]
[1642585193201,2.998,134.32,134.31,2.978]
[1642585193698,2.998,134.32,134.31,47.99439882]
[1642585194100,7.498,134.33,134.31,47.99439882]
[1642585194299,7.498,134.33,134.32,3.06639993]
[1642585195302,2.977,134.39,134.32,3.06639993]
[1642585195502,2.977,134.39,134.33,77.597]
[1642585195700,14.1414,134.43,134.34,85.63]
[1642585195901,2.977,134.43,134.35,2.976]
[1642585196301,2.977,134.43,134.36,48.64557328]
[1642585197505,2.977,134.43,134.37,11.163]
[1642585200109,43.49365687,134.42,134.37,11.163]
[1642585200309,43.49365687,134.42,134.36,11.01]
[1642585200510,6.25,134.41,134.36,10.76]
[1642585200713,9.226,134.41,134.31,74.62]
[1642585201010,9.226,134.41,134.34,10.76]
[1642585201610,11.1667,134.4,134.32,2.977]
[1642585201810,11.1667,134.4,134.29,2.976]
[1642585201811,3.227,134.39,134.29,2.976]
[1642585202010,11.0008939,134.39,134.28,35.1477]
[1642585202409,11.0008939,134.39,134.28,109.7677]
[1642585202611,40.91574493,134.38,134.29,40.70716052]
[1642585202810,3.227,134.37,134.29,40.70716052]
[1642585203212,6.0,134.36,134.29,40.70716052]
[1642585203410,38.83666109,134.35,134.29,40.70716052]
[1642585203610,42.06366109,134.35,134.26,2.977]
[1642585203810,6.0,134.34,134.27,10.76]
[1642585204213,0.25,134.33,134.27,10.76]
[1642585204611,0.25,134.33,134.27,13.738]
[1642585205513,0.25,134.33,134.27,24.9092]
[1642585205718,0.25,134.33,134.27,21.9312]
[1642585207217,0.25,134.33,134.27,10.76]
[1642585207518,11.4221,134.33,134.27,10.76]
[1642585207715,37.41053406,134.32,134.27,10.76]
[1642585207918,37.41053406,134.32,134.25,2.978]
[1642585208116,9.228,134.31,134.25,2.978]
[1642585208916,8.978,134.31,134.25,49.31305509]
[1642585209117,2.10626956,134.34,134.25,49.31305509]
[1642585209318,0.25,134.33,134.25,49.31305509]
[1642585209516,2.10626956,134.35,134.25,49.31305509]
[1642585209717,2.978,134.33,134.25,46.33505509]
[1642585209916,11.08426956,134.34,134.25,49.31305509]
[1642585210118,6.0,134.33,134.25,49.31305509]
[1642585210619,17.1722,134.33,134.25,60.48565509]
[1642585211117,6.0,134.33,134.25,60.48565509]
[1642585211519,0.25,134.32,134.25,60.48565509]
[1642585211718,0.25,134.33,134.25,60.48565509]
[1642585212521,11.4223,134.33,134.25,60.48565509]
[1642585212721,45.55735451,134.32,134.25,49.31305509]
[1642585212920,4.8278797,134.29,134.25,46.33505509]
[1642585213922,4.8278797,134.29,134.25,57.50765509]
[1642585216827,2.979,134.32,134.25,57.50765509]
[1642585217028,2.10626956,134.34,134.26,13.738]
[1642585217229,2.10626956,134.35,134.28,11.1682]
[1642585217427,2.10626956,134.36,134.29,40.93474436]
[1642585218431,2.10626956,134.37,134.3,11.1678]
[1642585218630,2.10626956,134.37,134.3,14.1448]
[1642585218827,2.10626956,134.37,134.31,10.76]
[1642585219028,2.10626956,134.38,134.32,2.977]
[1642585219428,3.30362031,134.39,134.33,48.47536584]
[1642585219628,1.19735075,134.39,134.34,2.977]
[1642585219829,3.30362031,134.39,134.34,2.977]
[1642585220028,3.30362031,134.39,134.33,59.64086584]
[1642585220229,3.30362031,134.39,134.34,0.25]
[1642585220529,2.10626956,134.39,134.34,0.25]
[1642585220730,2.10626956,134.39,134.34,11.415]
[1642585221131,2.10626956,134.39,134.34,86.035]
[1642585221630,2.10626956,134.4,134.34,86.035]
[1642585221830,2.10626956,134.4,134.34,99.771]
[1642585222030,2.10626956,134.41,134.34,99.771]
[1642585222231,2.9504005,134.38,134.34,99.771]
[1642585224935,2.9504005,134.38,134.34,96.795]
[1642585228259,2.9504005,134.38,134.35,2.977]
[1642585228458,2.9504005,134.38,134.36,11.19689996]
[1642585228661,2.9504005,134.38,134.36,11.44689996]
[1642585228860,2.9504005,134.38,134.37,38.79241521]
[1642585230362,2.9504005,134.38,134.37,50.20501521]
[1642585231462,2.9504005,134.38,134.37,49.95501521]
[1642585231962,2.9504005,134.38,134.37,52.98721518]
[1642585234161,2.9504005,134.38,134.37,14.19479997]
[1642585234363,2.9504005,134.38,134.37,3.03219997]
[1642585235167,2.10626956,134.41,134.37,77.90219997]
[1642585235369,2.10626956,134.43,134.38,2.976]
[1642585235570,2.10626956,134.44,134.39,11.1609]
[1642585235768,2.10626956,134.44,134.4,0.25]
[1642585236170,2.10626956,134.44,134.4,41.11489685]
[1642585236772,2.10626956,134.44,134.4,52.27519685]
[1642585239076,2.10626956,134.46,134.4,52.27519685]
[1642585239673,2.10626956,134.46,134.41,74.62]
[1642585239874,2.10626956,134.46,134.41,85.38]
[1642585240073,2.10626956,134.46,134.42,11.4085]
[1642585240273,2.10626956,134.47,134.43,41.45494755]
[1642585241375,2.10626956,134.47,134.41,10.76]
[1642585241578,2.10626956,134.46,134.41,10.76]
[1642585241775,2.10626956,134.45,134.41,10.76]
[1642585242775,43.2651426,134.45,134.41,10.76]
[1642585243376,43.2651426,134.45,134.4,35.84547921]
[1642585244081,2.10626956,134.45,134.4,35.84547921]
[1642585244679,2.10626956,134.44,134.4,35.84547921]
[1642585246385,2.10626956,134.45,134.4,35.84547921]
[1642585246586,2.10626956,134.44,134.4,35.84547921]
[1642585247285,2.10626956,134.44,134.41,0.25]
[1642585248187,2.998,134.43,134.41,0.25]
[1642585249193,2.998,134.43,134.4,38.82047921]
[1642585249392,2.998,134.43,134.4,2.975]
[1642585251804,2.998,134.43,134.39,50.79189829]
[1642585252102,5.10426956,134.43,134.39,50.79189829]
[1642585252302,5.10426956,134.43,134.38,24.8143]
[1642585252726,2.10626956,134.42,134.37,25.0259]
[1642585252928,5.33226956,134.42,134.34,21.9249]
[1642585253130,8.10626956,134.41,134.33,2.976]
[1642585253329,43.4554628,134.4,134.32,2.976]
[1642585253629,8.10626956,134.39,134.32,2.976]
[1642585254334,8.10626956,134.39,134.33,0.25]
[1642585254529,11.08326956,134.39,134.33,0.25]
[1642585254930,11.08326956,134.39,134.33,11.4163]
[1642585255330,11.08326956,134.39,134.34,45.19401103]
[1642585255532,8.10626956,134.39,134.34,45.19401103]
[1642585256634,11.08226956,134.39,134.34,45.19401103]
[1642585257437,11.08226956,134.39,134.34,56.35961103]
[1642585257637,8.10626956,134.39,134.34,56.35961103]
[1642585257835,2.35626956,134.4,134.34,56.35961103]
[1642585258036,2.10626956,134.4,134.34,130.97961103]
[1642585258236,2.10626956,134.4,134.36,0.41039067]
[1642585258435,2.10626956,134.41,134.36,3.38639067]
[1642585258635,2.10626956,134.41,134.37,11.1624]
[1642585258837,2.10626956,134.43,134.38,2.976]
[1642585259036,6.0,134.42,134.38,2.976]
[1642585259336,6.0,134.42,134.39,35.14971126]
[1642585259538,6.0,134.42,134.4,3.06639993]
[1642585260840,2.998,134.41,134.4,3.06639993]
[1642585261039,2.998,134.41,134.38,2.976]
[1642585261040,2.998,134.41,134.39,11.1615]
[1642585261341,2.998,134.41,134.38,2.976]
[1642585261943,2.998,134.41,134.39,43.11991237]
[1642585262145,2.998,134.41,134.39,54.53081237]
[1642585262344,2.976,134.42,134.4,3.06639993]
[1642585262543,2.976,134.42,134.4,6.04239993]
[1642585262945,2.10626956,134.44,134.4,3.06639993]
[1642585263145,2.10626956,134.44,134.4,14.22709993]
[1642585263346,2.10626956,134.43,134.41,0.25]
[1642585263552,2.10387436,134.45,134.41,13.985]
[1642585263746,2.10387436,134.45,134.41,15.31098295]
[1642585263988,2.975,134.46,134.41,15.31098295]
[1642585264183,2.975,134.46,134.42,38.98336503]
[1642585264384,4.18825323,134.5,134.42,60.90076503]
[1642585264583,7.16325323,134.51,134.43,0.25]
[1642585264885,7.16225323,134.52,134.44,10.76]
[1642585265282,7.16225323,134.52,134.45,47.38201102]
[1642585265482,7.16225323,134.52,134.45,58.53591102]
[1642585265682,6.25,134.51,134.45,58.53591102]
[1642585268288,6.25,134.51,134.47,0.40101695]
[1642585268489,6.25,134.51,134.47,11.55561695]
[1642585268890,6.25,134.51,134.48,49.00432611]
[1642585269091,2.998,134.5,134.48,49.00432611]
[1642585269894,2.974,134.52,134.49,3.06639993]
[1642585270094,4.18825323,134.55,134.49,3.31639993]
[1642585270291,15.36925323,134.56,134.49,3.31639993]
[1642585270490,11.181,134.56,134.49,3.31639993]
[1642585270690,15.34045323,134.57,134.49,3.31639993]
[1642585270892,42.43829125,134.55,134.49,3.31639993]
[1642585271291,15.34045323,134.57,134.49,3.31639993]
[1642585271492,8.973,134.56,134.5,11.1526]
[1642585271694,6.0,134.56,134.51,3.223]
[1642585271893,6.0,134.56,134.5,2.973]
[1642585272092,6.0,134.57,134.5,2.973]
[1642585272293,37.20066917,134.56,134.49,13.982]
[1642585272497,6.0,134.58,134.49,13.982]
[1642585272693,17.1513,134.58,134.51,11.1513]
[1642585272898,17.1513,134.58,134.51,21.9113]
[1642585273098,17.1513,134.58,134.52,0.25]
[1642585273498,52.78126227,134.58,134.52,38.49168559]
[1642585273899,52.78126227,134.58,134.52,38.24168559]
[1642585274299,52.78126227,134.58,134.51,13.732]
[1642585274501,52.78126227,134.58,134.52,11.151]
[1642585276632,52.78126227,134.58,134.51,24.8837]
[1642585276834,11.4025,134.57,134.51,24.8837]
[1642585277033,6.0,134.56,134.51,24.8837]
[1642585277232,42.99168528,134.55,134.51,24.8837]
[1642585277640,6.0,134.56,134.51,13.732]
[1642585277934,6.0,134.56,134.51,10.76]
[1642585278234,17.1513,134.58,134.52,0.25]
[1642585278638,39.01865642,134.57,134.52,0.25]
[1642585279134,6.0,134.56,134.52,0.25]
[1642585279535,6.0,134.56,134.52,11.4008]
[1642585282645,6.0,134.57,134.52,11.4008]
[1642585284144,6.0,134.57,134.53,39.37750294]
[1642585284347,6.0,134.57,134.53,50.52750294]
[1642585284546,2.973,134.59,134.53,50.52750294]
[1642585284744,0.25,134.58,134.53,50.52750294]
[1642585284943,2.973,134.59,134.54,0.25]
[1642585285143,11.0385,134.61,134.54,0.25]
[1642585285345,2.972,134.62,134.55,11.148]
[1642585285547,37.17689768,134.63,134.55,11.148]
[1642585285844,37.17689768,134.63,134.56,0.25]
[1642585286244,2.972,134.63,134.56,36.92720617]
[1642585286645,2.972,134.63,134.59,37.97948435]
[1642585286850,30.72364725,134.65,134.59,37.97948435]
[1642585287044,6.0,134.64,134.59,37.97948435]
[1642585287847,0.25,134.63,134.59,37.97948435]
[1642585288448,0.25,134.63,134.59,49.12468435]
[1642585288646,6.0,134.64,134.59,49.12468435]
[1642585288847,4.18825323,134.65,134.59,49.12468435]
[1642585289049,15.12705323,134.66,134.59,49.12468435]
[1642585289248,10.9388,134.66,134.59,49.12468435]
[1642585289653,55.06909759,134.66,134.59,49.12468435]
[1642585289853,50.88084436,134.66,134.59,49.12468435]
[1642585290050,6.0,134.65,134.59,49.12468435]
[1642585291652,6.0,134.65,134.6,0.25]
[1642585291852,6.0,134.65,134.61,11.1419]
[1642585292253,6.0,134.65,134.62,0.25]
[1642585292453,6.0,134.68,134.63,3.06639993]
[1642585292855,51.89232761,134.7,134.64,0.25]
[1642585293051,54.86232761,134.7,134.64,11.3907]
[1642585293255,8.37110768,134.69,134.65,39.53088102]
[1642585293453,7.15825323,134.7,134.65,39.53088102]
[1642585293987,6.0,134.69,134.65,39.53088102]
[1642585294355,58.38058598,134.71,134.65,39.53088102]
[1642585294356,6.0,134.7,134.65,39.53088102]
[1642585294556,9.22,134.7,134.64,0.25]
[1642585294957,9.22,134.7,134.64,11.3906]
[1642585295161,24.54965323,134.7,134.63,2.97]
[1642585295560,24.54965323,134.7,134.63,40.86736392]
[1642585296460,24.54965323,134.7,134.63,37.89736392]
[1642585297659,24.54965323,134.7,134.62,2.97]
[1642585297864,11.1454,134.67,134.58,10.76]
[1642585298061,8.971,134.66,134.58,10.76]
[1642585298264,9.221,134.66,134.58,10.76]
[1642585298662,54.19801744,134.66,134.59,44.52907702]
[1642585298860,2.971,134.65,134.59,44.52907702]
[1642585299263,0.25,134.64,134.59,44.52907702]
[1642585301163,6.25,134.64,134.59,44.52907702]
[1642585301564,17.3963,134.64,134.58,10.76]
[1642585302565,17.3963,134.64,134.58,58.56413908]
[1642585304378,6.25,134.64,134.58,69.70893908]
[1642585304576,7.15925323,134.67,134.59,3.221]
[1642585304776,0.25,134.66,134.59,3.221]
[1642585304977,6.25,134.66,134.59,0.25]
[1642585305178,6.25,134.66,134.58,72.67993908]
[1642585305381,6.25,134.66,134.58,69.70893908]
[1642585305382,14.1169,134.65,134.58,69.70893908]
[1642585305779,0.25,134.64,134.58,69.70893908]
[1642585305978,6.25,134.64,134.58,69.70893908]
[1642585306778,17.3963,134.64,134.58,47.80413908]
[1642585306981,44.91609991,134.63,134.58,47.80413908]
[1642585307185,3.221,134.62,134.56,21.9063]
[1642585307383,6.0,134.62,134.56,21.9063]
[1642585307580,0.25,134.61,134.55,7.118]
[1642585307780,3.222,134.61,134.55,7.118]
[1642585307980,3.222,134.61,134.54,21.9079]
[1642585308180,6.0,134.6,134.55,43.92097703]
[1642585308584,6.25,134.61,134.55,43.92097703]
[1642585309505,17.399,134.61,134.55,43.92097703]
[1642585309903,17.399,134.61,134.55,46.89297703]
[1642585310101,0.25,134.61,134.55,58.04027703]
[1642585310402,0.25,134.62,134.55,58.04027703]
[1642585310600,6.0,134.62,134.55,58.04027703]
[1642585311000,6.0,134.62,134.55,46.89297703]
[1642585311305,5.0,134.62,134.55,46.89297703]
[1642585311601,5.0,134.62,134.55,43.92097703]
[1642585312003,0.25,134.61,134.55,43.92097703]
[1642585312401,11.3989,134.61,134.55,43.92097703]
[1642585312800,39.50243248,134.6,134.55,43.92097703]
[1642585313100,11.3989,134.61,134.55,43.92097703]
[1642585315004,0.25,134.61,134.55,43.92097703]